fUST/lending_fUST_20250727
["ID","MTS","AMOUNT","RATE_DAILY","PERIOD"]
[375332753,1753626645294,-153.0,0.00021918,2]
[375332754,1753626645303,-153.0,0.00021918,2]
[375332755,1753626645312,-153.0,0.00021918,2]
[375332757,1753626645321,-153.0,0.00021918,2]
[375332758,1753626645330,-153.0,0.00021918,2]
[375332759,1753626645338,-153.0,0.00021918,2]
[375332760,1753626645348,-153.0,0.00021918,2]
[375332761,1753626645357,-153.0,0.00021918,2]
[375332762,1753626645367,-153.0,0.00021918,2]
[375332763,1753626645376,-153.0,0.00021918,2]
[375332764,1753626645386,-153.0,0.00021918,2]
[375332765,1753626645396,-153.0,0.00021918,2]
[375332768,1753626645405,-153.0,0.00021918,2]
[375332770,1753626645414,-153.0,0.00021918,2]
[375332772,1753626645423,-153.0,0.00021918,2]
[375332774,1753626645432,-153.0,0.00021918,2]
[375332776,1753626645442,-153.0,0.00021918,2]
[375332778,1753626645451,-153.0,0.00021918,2]
[375332780,1753626645460,-153.0,0.00021918,2]
[375332782,1753626645469,-153.0,0.00021918,2]
[375332784,1753626645479,-153.0,0.00021918,2]
[375332786,1753626645488,-153.0,0.00021918,2]
[375332789,1753626645497,-153.0,0.00021918,2]
[375332790,1753626645507,-153.0,0.00021918,2]
[375332792,1753626645516,-153.0,0.00021918,2]
[375332794,1753626645528,-153.0,0.00021918,2]
[375332796,1753626645538,-200.0,0.00021918,2]
[375332798,1753626645548,-150.2343113,0.00021918,2]
[375332799,1753626645557,-22107.96772863,0.0002192,2]
[375332800,1753626645571,-65480.87630639,0.0002192,2]
[375332812,1753626645938,-460.0,0.0001945,2]
[375332813,1753626645948,-495.24112983,0.00019451,2]
[375332814,1753626645957,-460.0,0.00019724,2]
[375332815,1753626645967,-512.11,0.00021734,10]
[375332816,1753626645976,-51603.98323349,0.0002192,2]
[375332817,1753626645986,-151.0,0.0002192,7]
[375332818,1753626645995,-750.969191,0.0002192,7]
[375332819,1753626646004,-750.969191,0.0002192,7]
[375332820,1753626646014,-151.0,0.0002192,7]
[375332821,1753626646024,-151.0,0.0002192,7]
[375332822,1753626646034,-151.0,0.0002192,7]
[375332823,1753626646044,-151.0,0.0002192,7]
[375332824,1753626646053,-151.0,0.0002192,7]
[375332825,1753626646063,-151.0,0.0002192,7]
[375332826,1753626646073,-151.0,0.0002192,7]
[375332827,1753626646083,-256.982704,0.0002192,7]
[375332828,1753626646092,-500.0,0.00021973,2]
[375332830,1753626646102,-500.0,0.00021973,2]
[375332832,1753626646111,-503.02000038,0.00021973,2]
[375332834,1753626646121,-500.0,0.00021973,2]
[375332836,1753626646131,-500.0,0.00021973,2]
[375332838,1753626646140,-500.0,0.00021973,2]
[375332839,1753626646150,-500.0,0.00021973,2]
[375332840,1753626646159,-500.0,0.00021973,2]
[375332841,1753626646169,-150.60043876,0.00021973,2]
[375332842,1753626646178,-614.7,0.00021994,4]
[375332843,1753626646188,-2645.71,0.00022,7]
[375332844,1753626646198,-3980.93,0.00022,7]
[375332845,1753626646207,-37376.3,0.00022,2]
[375332846,1753626646217,-275.03,0.00022,2]
[375332847,1753626646226,-153.0,0.00022,2]
[375332848,1753626646236,-693.1460659,0.00022003,6]
[375332849,1753626646245,-460.0,0.00022019,2]
[375332850,1753626646255,-250.0,0.00022023,2]
[375332851,1753626646265,-334.0,0.00022075,2]
[375332852,1753626646274,-693.1460659,0.00022141,6]
[375332853,1753626646284,-2555.41163096,0.00022185,2]
[375332854,1753626646294,-2076.27,0.00022189,2]
[375332855,1753626646304,-460.0,0.00022189,2]
[375332856,1753626646313,-1657.14,0.00022189,2]
[375332857,1753626646324,-460.0,0.0002219,2]
[375332858,1753626646334,-540.48,0.0002219,2]
[375332859,1753626646344,-1247.19,0.0002219,2]
[375332860,1753626646358,-1311.77,0.0002219,2]
[375332861,1753626646368,-640.61,0.0002219,2]
[375332862,1753626646377,-2082.74,0.00022191,2]
[375332863,1753626646387,-1601.15,0.00022191,2]
[375332864,1753626646397,-731.73,0.00022191,2]
[375332865,1753626646408,-875.29,0.00022191,2]
[375332866,1753626646418,-2957.88,0.00022191,2]
[375332867,1753626646429,-1168.5,0.00022191,2]
[375332868,1753626646439,-460.0,0.00022191,2]
[375332869,1753626646449,-790.48,0.00022191,2]
[375332870,1753626646459,-1659.99,0.00022191,2]
[375332871,1753626646470,-693.1460659,0.00022279,6]
[375332872,1753626646480,-1399.15788518,0.00022299,2]
[375332873,1753626646490,-693.1460659,0.00022417,7]
[375332874,1753626646501,-312.16666667,0.0002242,7]
[375332875,1753626646513,-614.7,0.00022427,5]
[375332876,1753626646527,-165.53304094,0.00022459,2]
[375332877,1753626646542,-2076.27,0.00022463,2]
[375332878,1753626646552,-460.0,0.00022463,2]
[375332879,1753626646564,-1657.14,0.00022463,2]
[375332880,1753626646576,-487.68944798,0.00022464,2]
[375332881,1753626646586,-540.48,0.00022464,2]
[375332882,1753626646597,-1247.19,0.00022464,2]
[375332883,1753626646608,-1311.77,0.00022464,2]
[375332884,1753626646618,-640.61,0.00022464,2]
[375332885,1753626646629,-2082.74,0.00022465,2]
[375332886,1753626646638,-1601.15,0.00022465,2]
[375332887,1753626646650,-731.73,0.00022465,2]
[375332888,1753626646660,-875.29,0.00022465,2]
[375332889,1753626646670,-2957.88,0.00022465,2]
[375332890,1753626646680,-1168.5,0.00022465,2]
[375332891,1753626646691,-460.0,0.00022465,2]
[375332892,1753626646701,-790.48,0.00022465,2]
[375332893,1753626646712,-1022.3,0.00022465,2]
[375332894,1753626646722,-1659.99,0.00022465,2]
[375332895,1753626646732,-3712.899333,0.0002249,7]
[375332896,1753626646742,-275.03,0.000225,2]
[375332897,1753626646752,-1000.0,0.00022521,2]
[375332898,1753626646764,-501.10459567,0.00022521,2]
[375332899,1753626646775,-1000.0,0.00022521,2]
[375332900,1753626646784,-500.0,0.00022521,2]
[375332901,1753626646795,-500.0,0.00022521,2]
[375332902,1753626646804,-334.0,0.00022555,2]
[375332903,1753626646815,-693.1460659,0.00022555,7]
[375332904,1753626646824,-560.0,0.00022567,2]
[375332905,1753626646834,-4542.95401059,0.00022586,2]
[375332906,1753626646844,-194.959886,0.00022603,2]
[375332907,1753626646854,-400.0,0.00022603,2]
[375332908,1753626646865,-600.0,0.00022604,2]
[375332909,1753626646877,-150.0,0.00022606,2]
[375332910,1753626646888,-693.1460659,0.00022693,7]
[375332911,1753626646898,-240.4133878,0.00022712,2]
[375332912,1753626646911,-153.0,0.00022712,2]
[375332913,1753626646922,-153.0,0.00022712,2]
[375332914,1753626646931,-153.0,0.00022712,2]
[375332915,1753626646942,-153.0,0.00022712,2]
[375332916,1753626646951,-153.0,0.00022712,2]
[375332917,1753626646961,-153.0,0.00022712,2]
[375332918,1753626646972,-153.0,0.00022712,2]
[375332919,1753626646982,-265.0,0.00022729,2]
[375332920,1753626646991,-2076.27,0.00022737,2]
[375332921,1753626647002,-460.0,0.00022737,2]
[375332922,1753626647014,-1657.14,0.00022737,2]
[375332923,1753626647024,-540.48,0.00022738,2]
[375332924,1753626647034,-1247.19,0.00022738,2]
[375332925,1753626647043,-1311.77,0.00022738,2]
[375332926,1753626647053,-640.61,0.00022738,2]
[375332927,1753626647063,-2082.74,0.00022739,2]
[375332928,1753626647073,-1601.15,0.00022739,2]
[375332929,1753626647083,-731.73,0.00022739,2]
[375332930,1753626647092,-875.29,0.00022739,2]
[375332931,1753626647102,-2957.88,0.00022739,2]
[375332932,1753626647112,-1168.5,0.00022739,2]
[375332933,1753626647122,-460.0,0.00022739,2]
[375332934,1753626647132,-790.48,0.00022739,2]
[375332935,1753626647142,-1659.99,0.00022739,2]
[375332936,1753626647152,-587.0,0.00022776,2]
[375332937,1753626647161,-265.0,0.0002283,2]
[375332938,1753626647171,-693.1460659,0.00022831,8]
[375332939,1753626647180,-265.0,0.00022854,2]
[375332940,1753626647190,-614.7,0.00022861,5]
[375332941,1753626647200,-750.969191,0.000229,7]
[375332942,1753626647209,-750.969191,0.000229,7]
[375332943,1753626647219,-151.0,0.000229,7]
[375332944,1753626647230,-186.671284,0.000229,7]
[375332945,1753626647239,-151.0,0.000229,7]
[375332946,1753626647249,-182.394172,0.000229,7]
[375332947,1753626647259,-151.0,0.000229,7]
[375332948,1753626647270,-151.0,0.000229,7]
[375332949,1753626647279,-265.0,0.00022949,2]
[375332950,1753626647289,-265.0,0.00022952,2]
[375332951,1753626647299,-275.03,0.00022956,2]
[375332952,1753626647309,-693.1460659,0.00022969,8]
[375332953,1753626647319,-7098.36564154,0.00022986,2]
[375332954,1753626647329,-1167.10920213,0.00022988,2]
[375332955,1753626647341,-851.59,0.00023,2]
[375332956,1753626647350,-160.0,0.00023,2]
[375332957,1753626647360,-2076.27,0.00023011,2]
[375332958,1753626647370,-460.0,0.00023011,2]
[375332959,1753626647380,-1657.14,0.00023011,2]
[375332960,1753626647390,-540.48,0.00023012,2]
[375332961,1753626647400,-1247.19,0.00023012,2]
[375332962,1753626647410,-1311.77,0.00023012,2]
[375332963,1753626647420,-640.61,0.00023012,2]
[375332964,1753626647431,-151.600414,0.00023013,7]
[375332965,1753626647440,-2082.74,0.00023013,2]
[375332966,1753626647450,-1601.15,0.00023013,2]
[375332967,1753626647460,-731.73,0.00023013,2]
[375332968,1753626647470,-875.29,0.00023013,2]
[375332969,1753626647480,-2957.88,0.00023013,2]
[375332970,1753626647490,-1168.5,0.00023013,2]
[375332971,1753626647499,-572.8,0.00023013,2]
[375332972,1753626647509,-790.48,0.00023013,2]
[375332973,1753626647523,-1659.99,0.00023013,2]
[375332974,1753626647533,-153.0,0.00023014,7]
[375332975,1753626647544,-265.0,0.00023018,2]
[375332976,1753626647554,-786.36,0.00023067,6]
[375332977,1753626647564,-517.73,0.00023068,6]
[375332978,1753626647575,-1500.0,0.00023068,2]
[375332979,1753626647586,-1615.91010818,0.00023068,2]
[375332980,1753626647598,-524.25,0.0002307,4]
[375332981,1753626647608,-500.0,0.00023073,2]
[375332982,1753626647618,-151.0,0.00023081,2]
[375332983,1753626647628,-151.0,0.00023081,2]
[375332984,1753626647639,-151.0,0.00023081,2]
[375332985,1753626647648,-151.0,0.00023081,2]
[375332986,1753626647658,-151.0,0.00023081,2]
[375332987,1753626647668,-164.544173,0.00023081,2]
[375332988,1753626647678,-3801.642,0.00023081,2]
[375332989,1753626647688,-151.0,0.00023081,2]
[375332990,1753626647699,-25000.0,0.00023081,2]
[375332991,1753626647708,-20658.09658481,0.00023081,2]
[375332992,1753626647719,-502.05411089,0.00023081,2]
[375332993,1753626647730,-151.0,0.00023081,2]
[375332994,1753626647740,-151.0,0.00023081,2]
[375332995,1753626647750,-151.0,0.00023081,2]
[375332996,1753626647759,-151.0,0.00023081,2]
[375332997,1753626647769,-151.0,0.00023081,2]
[375332998,1753626647780,-151.0,0.00023081,2]
[375332999,1753626647790,-151.0,0.00023081,2]
[375333000,1753626647801,-151.0,0.00023081,2]
[375333001,1753626647811,-151.0,0.00023081,2]
[375333002,1753626647822,-151.0,0.00023081,2]
[375333003,1753626647831,-270.27902396,0.00023081,2]
[375333004,1753626647842,-151.0,0.00023081,2]
[375333005,1753626647852,-151.0,0.00023081,2]
[375333006,1753626647861,-151.0,0.00023081,2]
[375333007,1753626647872,-151.0,0.00023081,2]
[375333008,1753626647883,-151.0,0.00023081,2]
[375333009,1753626647895,-151.0,0.00023081,2]
[375333010,1753626647905,-151.0,0.00023081,2]
[375333011,1753626647917,-151.0,0.00023081,2]
[375333012,1753626647927,-151.0,0.00023081,2]
[375333013,1753626647937,-151.0,0.00023081,2]
[375333014,1753626647947,-151.0,0.00023081,2]
[375333015,1753626647957,-151.0,0.00023081,2]
[375333016,1753626647967,-151.0,0.00023081,2]
[375333017,1753626647977,-151.0,0.00023081,2]
[375333018,1753626647987,-151.0,0.00023081,2]
[375333019,1753626647997,-151.0,0.00023081,2]
[375333020,1753626648007,-171.02,0.000231,4]
[375333021,1753626648017,-199.52707656,0.000231,4]
[375333022,1753626648028,-693.1460659,0.00023107,8]
[375333023,1753626648038,-660.0,0.00023115,2]
[375333024,1753626648048,-3942.302754,0.00023136,2]
[375333025,1753626648058,-150.0,0.00023137,2]
[375333026,1753626648068,-150.0,0.00023137,2]
[375333027,1753626648078,-150.0,0.00023137,2]
[375333028,1753626648088,-517.73,0.00023168,3]
[375333029,1753626648098,-524.25,0.0002317,4]
[375333030,1753626648108,-4088.1679559,0.00023191,2]
[375333031,1753626648118,-2645.71,0.000232,7]
[375333032,1753626648128,-3980.93,0.000232,7]
[375333033,1753626648138,-151.0,0.000232,7]
[375333034,1753626648148,-37376.3,0.000232,2]
[375333035,1753626648158,-150.0,0.00023222,2]
[375333036,1753626648169,-693.1460659,0.00023245,8]
[375333037,1753626648178,-750.969191,0.00023246,7]
[375333038,1753626648188,-750.969191,0.00023246,7]
[375333039,1753626648198,-151.0,0.00023246,7]
[375333040,1753626648208,-151.0,0.00023246,7]
[375333041,1753626648218,-218.636657,0.00023246,7]
[375333042,1753626648228,-151.0,0.00023246,7]
[375333043,1753626648239,-4239.43017027,0.00023246,2]
[375333044,1753626648249,-178.3051933,0.0002326,2]
[375333045,1753626648259,-517.73,0.00023268,4]
[375333046,1753626648270,-524.25,0.0002327,7]
[375333047,1753626648281,-2076.27,0.00023285,2]
[375333048,1753626648291,-460.0,0.00023285,2]
[375333049,1753626648301,-1657.14,0.00023285,2]
[375333050,1753626648311,-540.48,0.00023286,2]
[375333051,1753626648321,-1247.19,0.00023286,2]
[375333052,1753626648331,-1311.77,0.00023286,2]
[375333053,1753626648341,-640.61,0.00023286,2]
[375333054,1753626648351,-2082.74,0.00023287,2]
[375333055,1753626648362,-1601.15,0.00023287,2]
[375333056,1753626648372,-731.73,0.00023287,2]
[375333057,1753626648382,-875.29,0.00023287,2]
[375333058,1753626648392,-2957.88,0.00023287,2]
[375333059,1753626648403,-1168.5,0.00023287,2]
[375333060,1753626648413,-790.48,0.00023287,2]
[375333061,1753626648424,-1659.99,0.00023287,2]
[375333062,1753626648434,-614.7,0.00023294,5]
[375333063,1753626648445,-4396.28908657,0.00023301,2]
[375333064,1753626648455,-969.0,0.00023302,2]
[375333065,1753626648466,-421.197,0.00023302,2]
[375333066,1753626648477,-517.73,0.00023368,6]
[375333067,1753626648487,-577.9763186,0.0002337,2]
[375333068,1753626648497,-160.0437776,0.0002337,2]
[375333069,1753626648508,-693.1460659,0.00023383,9]
[375333070,1753626648518,-621.6828291,0.00023387,2]
[375333071,1753626648532,-4068.26775785,0.000234,2]
[375333072,1753626648543,-389.0,0.00023408,2]
[375333073,1753626648553,-265.0,0.0002343,2]
[375333074,1753626648563,-275.03,0.00023434,2]
[375333075,1753626648576,-156.137012,0.00023444,2]
[375333076,1753626648707,-517.73,0.00023468,2]
[375333077,1753626648717,-265.0,0.00023475,2]
[375333078,1753626648727,-153.48,0.00023475,2]
[375333079,1753626648738,-1000.0,0.000235,2]
[375333080,1753626648747,-693.1460659,0.00023521,9]
[375333081,1753626648756,-2076.27,0.00023559,2]
[375333082,1753626648764,-460.0,0.00023559,2]
[375333083,1753626648774,-1657.14,0.00023559,2]
[375333084,1753626648783,-540.48,0.0002356,2]
[375333085,1753626648792,-1247.19,0.0002356,2]
[375333086,1753626648801,-1311.77,0.0002356,2]
[375333087,1753626648811,-640.61,0.0002356,2]
[375333088,1753626648820,-200.0,0.00023561,2]
[375333089,1753626648830,-200.0,0.00023561,2]
[375333090,1753626648844,-200.0,0.00023561,2]
[375333091,1753626648856,-200.0,0.00023561,2]
[375333092,1753626648865,-200.0,0.00023561,2]
[375333093,1753626648875,-2082.74,0.00023561,2]
[375333094,1753626648885,-1601.15,0.00023561,2]
[375333095,1753626648895,-731.73,0.00023561,2]
[375333096,1753626648904,-875.29,0.00023561,2]
[375333097,1753626648913,-2957.88,0.00023561,2]
[375333098,1753626648923,-1168.5,0.00023561,2]
[375333099,1753626648933,-790.48,0.00023561,2]
[375333100,1753626648943,-517.73,0.00023568,4]
[375333101,1753626648952,-800.0,0.00023612,2]
[375333102,1753626648961,-151.0,0.00023629,7]
[375333103,1753626648971,-219.83441818,0.00023629,2]
[375333104,1753626648980,-25000.0,0.00023629,2]
[375333105,1753626648989,-168.0,0.00023634,2]
[375333106,1753626648998,-159.01706019,0.00023644,2]
[375333107,1753626649008,-181.23166593,0.00023644,2]
[375333108,1753626649017,-173.46257085,0.00023644,2]
[375333109,1753626649026,-693.1460659,0.00023659,9]
[375333110,1753626649036,-800.0,0.00023661,2]
[375333111,1753626649046,-667.27167015,0.00023663,2]
[375333112,1753626649055,-517.73,0.00023668,4]
[375333113,1753626649065,-1446.44337569,0.00023695,2]
[375333114,1753626649074,-600.0,0.000237,2]
[375333115,1753626649083,-614.7,0.00023727,6]
[375333116,1753626649093,-159.01706019,0.00023753,2]
[375333117,1753626649102,-181.23166593,0.00023753,2]
[375333118,1753626649111,-519.21,0.00023767,7]
[375333119,1753626649121,-517.73,0.00023768,3]
[375333120,1753626649131,-300.0,0.0002377,2]
[375333121,1753626649140,-693.1460659,0.00023797,9]
[375333122,1753626649150,-168.0,0.00023829,2]
[375333123,1753626649159,-2076.27,0.00023833,2]
[375333124,1753626649168,-460.0,0.00023833,2]
[375333125,1753626649178,-1657.14,0.00023833,2]
[375333126,1753626649187,-151.0,0.00023834,7]
[375333127,1753626649197,-540.48,0.00023834,2]
[375333128,1753626649206,-1247.19,0.00023834,2]
[375333129,1753626649215,-1311.77,0.00023834,2]
[375333130,1753626649226,-640.61,0.00023834,2]
[375333131,1753626649235,-151.0,0.00023835,7]
[375333132,1753626649245,-2082.74,0.00023835,2]
[375333133,1753626649255,-1601.15,0.00023835,2]
[375333134,1753626649265,-731.73,0.00023835,2]
[375333135,1753626649274,-875.29,0.00023835,2]
[375333136,1753626649284,-2957.88,0.00023835,2]
[375333137,1753626649294,-1168.5,0.00023835,2]
[375333138,1753626649303,-790.48,0.00023835,2]
[375333139,1753626649313,-159.01706019,0.00023863,2]
[375333140,1753626649323,-181.23166593,0.00023863,2]
[375333141,1753626649333,-519.24,0.00023867,7]
[375333142,1753626649342,-750.969191,0.00023867,7]
[375333143,1753626649351,-750.969191,0.00023867,7]
[375333144,1753626649361,-517.73,0.00023868,5]
[375333145,1753626649370,-151.0,0.0002389,7]
[375333146,1753626649380,-428.8286288,0.0002389,2]
[375333147,1753626649390,-173.46257085,0.0002389,2]
[375333148,1753626649399,-987.82314561,0.000239,2]
[375333149,1753626649410,-275.03,0.00023912,2]
[375333150,1753626649419,-693.1460659,0.00023934,10]
[375333151,1753626649429,-517.73,0.00023968,7]
[375333152,1753626649439,-159.01706019,0.00023973,2]
[375333153,1753626649453,-181.23166593,0.00023973,2]
[375333154,1753626649466,-165.59307071,0.00024,4]
[375333155,1753626649476,-1695.55584752,0.00024,2]
[375333156,1753626649485,-11641.60034241,0.00024,2]
[375333157,1753626649495,-10161.6513479,0.00024,2]
[375333158,1753626649504,-162.11692712,0.00024,2]
[375333159,1753626649514,-1004.284523,0.00024,2]
[375333160,1753626649526,-332.605411,0.00024009,8]
[375333161,1753626649536,-392.0,0.00024023,2]
[375333162,1753626649546,-500.0,0.00024032,2]
[375333163,1753626649556,-600.0,0.00024048,2]
[375333164,1753626649567,-389.0,0.00024053,2]
[375333165,1753626649577,-517.73,0.00024068,5]
[375333166,1753626649587,-151.0,0.00024072,7]
[375333167,1753626649597,-693.1460659,0.00024072,10]
[375333168,1753626649607,-389.0,0.00024077,2]
[375333169,1753626649617,-392.0,0.0002408,2]
[375333170,1753626649626,-500.0,0.00024081,2]
[375333171,1753626649636,-159.01706019,0.00024082,2]
[375333172,1753626649645,-181.23166593,0.00024082,2]
[375333173,1753626649655,-165.53304094,0.00024088,2]
[375333174,1753626649664,-579.99,0.000241,7]
[375333175,1753626649674,-600.0,0.00024106,2]
[375333176,1753626649683,-311.98315658,0.00024107,2]
[375333177,1753626649693,-1247.93262632,0.00024107,2]
[375333178,1753626649703,-2807.84840922,0.00024107,2]
[375333179,1753626649712,-4991.73050529,0.00024107,2]
[375333180,1753626649722,-7791.77933559,0.00024107,2]
[375333181,1753626649732,-2076.27,0.00024107,2]
[375333182,1753626649741,-460.0,0.00024107,2]
[375333183,1753626649750,-1657.14,0.00024107,2]
[375333184,1753626649759,-540.48,0.00024108,2]
[375333185,1753626649769,-1247.19,0.00024108,2]
[375333186,1753626649780,-1311.77,0.00024108,2]
[375333187,1753626649789,-640.61,0.00024108,2]
[375333188,1753626649799,-2082.74,0.00024109,2]
[375333189,1753626649809,-1601.15,0.00024109,2]
[375333190,1753626649818,-731.73,0.00024109,2]
[375333191,1753626649828,-875.29,0.00024109,2]
[375333192,1753626649838,-2957.88,0.00024109,2]
[375333193,1753626649848,-1168.5,0.00024109,2]
[375333194,1753626649857,-790.48,0.00024109,2]
[375333195,1753626649867,-1167.10920213,0.0002411,2]
[375333196,1753626649879,-173.46257085,0.00024137,2]
[375333197,1753626649889,-614.7,0.0002416,6]
[375333198,1753626649901,-517.73,0.00024168,7]
[375333199,1753626649911,-156.137012,0.00024168,8]
[375333200,1753626649922,-25000.0,0.00024177,2]
[375333201,1753626649932,-500.0,0.00024182,2]
[375333202,1753626649942,-600.0,0.00024183,2]
[375333203,1753626649952,-151.0,0.0002421,7]
[375333204,1753626649962,-693.1460659,0.0002421,10]
[375333205,1753626649974,-159.01706019,0.00024219,2]
[375333206,1753626649984,-181.23166593,0.00024219,2]
[375333207,1753626649996,-9545.71,0.00024225,11]
[375333208,1753626650005,-600.0,0.00024238,2]
[375333209,1753626650015,-389.0,0.00024247,2]
[375333210,1753626650025,-517.73,0.00024268,5]
[375333211,1753626650035,-304.37602874,0.00024304,5]
[375333212,1753626650045,-450.0,0.00024318,2]
[375333213,1753626650054,-159.01706019,0.00024329,2]
[375333214,1753626650064,-181.23166593,0.00024329,2]
[375333215,1753626650073,-175.41,0.00024345,2]
[375333216,1753626650083,-693.1460659,0.00024348,11]
[375333217,1753626650093,-600.0,0.00024355,2]
[375333218,1753626650102,-517.73,0.00024368,3]
[375333219,1753626650112,-2076.27,0.00024381,2]
[375333220,1753626650121,-151.0,0.00024381,7]
[375333221,1753626650133,-151.0,0.00024381,7]
[375333222,1753626650143,-460.0,0.00024381,2]
[375333223,1753626650153,-1657.14,0.00024381,2]
[375333224,1753626650162,-540.48,0.00024382,2]
[375333225,1753626650172,-1247.19,0.00024382,2]
[375333226,1753626650182,-1311.77,0.00024382,2]
[375333227,1753626650191,-640.61,0.00024382,2]
[375333228,1753626650201,-2082.74,0.00024383,2]
[375333229,1753626650210,-1601.15,0.00024383,2]
[375333230,1753626650220,-731.73,0.00024383,2]
[375333231,1753626650229,-875.29,0.00024383,2]
[375333232,1753626650239,-2957.88,0.00024383,2]
[375333233,1753626650249,-1168.5,0.00024383,2]
[375333234,1753626650259,-790.48,0.00024383,2]
[375333235,1753626650268,-173.46257085,0.00024384,2]
[375333236,1753626650278,-750.969191,0.00024385,7]
[375333237,1753626650288,-750.969191,0.00024385,7]
[375333238,1753626650298,-275.03,0.0002439,2]
[375333239,1753626650307,-2645.71,0.000244,7]
[375333240,1753626650317,-3980.93,0.000244,7]
[375333241,1753626650327,-16542.96581357,0.000244,2]
[375333242,1753626650436,-151.0,0.00023081,2]
[375333244,1753626650446,-370.87625695,0.000244,2]
[375333245,1753626650457,-12684.40684156,0.000244,2]
[375333259,1753626857290,419.625156,0.00013699,2]
[375333263,1753626895593,444.53644,0.00018337,2]
[375333286,1753627283766,150.0,0.00018297,2]
[375333290,1753627351047,4621.82774847,0.00018269,2]
[375333291,1753627351072,20000.0,0.00018269,2]
[375333292,1753627351096,278.17225153,0.00018269,2]
[375333293,1753627352132,150.0,0.00018433,2]
[375333301,1753627418591,150.0,0.00018398,2]
[375333315,1753627561629,150.0,0.00018415,2]
[375333322,1753627635390,-221.05006498,0.00018768,2]
[375333323,1753627635412,-147.03881631,0.00018799,2]
[375333335,1753627748108,-171.89877234,0.000188,2]
[375333336,1753627748129,-302.8183302,0.000189,2]
[375333337,1753627748152,-300.0,0.00019176,2]
[375333338,1753627748174,-197.257,0.00019177,2]
[375333339,1753627748199,-500.0,0.00019177,2]
[375333340,1753627748221,-3.67085776,0.00019177,2]
[375333354,1753627832078,-300.0,0.00019076,2]
[375333355,1753627832089,-373.88,0.00019077,2]
[375333356,1753627832119,-45248.48534022,0.00019077,2]
[375333357,1753627832131,-496.32914224,0.00019177,2]
[375333358,1753627832148,-500.0,0.00019177,2]
[375333359,1753627832159,-500.0,0.00019177,2]
[375333360,1753627832170,-484.34452407,0.00019177,2]
[375333361,1753627832182,-460.0,0.00019178,2]
[375333364,1753627832193,-312.31776726,0.00019178,2]
[375333367,1753627832205,-460.0,0.00019178,2]
[375333369,1753627832216,-460.0,0.00019178,2]
[375333370,1753627832226,-460.0,0.00019178,2]
[375333371,1753627832236,-460.0,0.00019178,2]
[375333373,1753627832246,-460.0,0.00019178,2]
[375333375,1753627832257,-460.0,0.00019178,2]
[375333377,1753627832267,-460.0,0.00019178,2]
[375333379,1753627832279,-460.0,0.00019178,2]
[375333381,1753627832290,-460.0,0.00019178,2]
[375333384,1753627832302,-460.0,0.00019178,2]
[375333386,1753627832314,-460.0,0.00019178,2]
[375333387,1753627832324,-460.0,0.00019178,2]
[375333389,1753627832335,-460.0,0.00019178,2]
[375333392,1753627832346,-460.0,0.00019178,2]
[375333394,1753627832356,-460.0,0.00019178,2]
[375333396,1753627832367,-301.82434676,0.00019178,2]